[Event "Titled Tuesday Blitz May 31 Late 2022"]
[White "Drygalov, Andrey"]
[Black "Jumabayev, Rinat"]
[WhiteFideId "24171735"]
[BlackFideId "13702661"]
[WhiteElo "2540"]
[BlackElo "2561"]
[Result "1-0"]
[Round "11"]
[TimeControl "180+1"]
[Date "2022.05.31"]
[WhiteClock "0:01:39"]
[BlackClock "0:01:23"]

1. e4 {[%clk 0:02:59]}  c6 {[%clk 0:02:58]} 2. Nf3 {[%clk 0:02:58]}  g6 {[%clk 0:02:55]} 3. d4 {[%clk 0:02:52]}  d5 {[%clk 0:02:52]} 4. Nc3 {[%clk 0:02:52]}  dxe4 {[%clk 0:02:53]} 5. Nxe4 {[%clk 0:02:52]}  Nf6 {[%clk 0:02:53]} 6. Nxf6+ {[%clk 0:02:50]}  exf6 {[%clk 0:02:54]} 7. h3 {[%clk 0:02:44]}  Be6 {[%clk 0:02:50]} 8. Bd3 {[%clk 0:02:43]}  Bg7 {[%clk 0:02:49]} 9. O-O {[%clk 0:02:42]}  O-O {[%clk 0:02:50]} 10. Re1 {[%clk 0:02:40]}  Nd7 {[%clk 0:02:50]} 11. c3 {[%clk 0:02:40]}  Re8 {[%clk 0:02:47]} 12. Bf4 {[%clk 0:02:39]}  Nb6 {[%clk 0:02:46]} 13. Qd2 {[%clk 0:02:38]}  a5 {[%clk 0:02:44]} 14. b3 {[%clk 0:02:31]}  Nd5 {[%clk 0:02:40]} 15. Bg3 {[%clk 0:02:28]}  Qd7 {[%clk 0:02:37]} 16. Rad1 {[%clk 0:02:21]}  h5 {[%clk 0:02:30]} 17. c4 {[%clk 0:02:19]}  Nb4 {[%clk 0:02:30]} 18. Bb1 {[%clk 0:02:19]}  b5 {[%clk 0:02:17]} 19. a3 {[%clk 0:02:17]}  Na6 {[%clk 0:02:12]} 20. d5 {[%clk 0:02:16]}  cxd5 {[%clk 0:02:07]} 21. cxd5 {[%clk 0:02:16]}  Bf5 {[%clk 0:02:06]} 22. Rxe8+ {[%clk 0:02:16]}  Rxe8 {[%clk 0:02:05]} 23. Bxf5 {[%clk 0:02:17]}  Qxf5 {[%clk 0:02:06]} 24. Qxa5 {[%clk 0:02:16]}  Qc2 {[%clk 0:01:55]} 25. Rd2 {[%clk 0:02:04]}  Qc1+ {[%clk 0:01:45]} 26. Kh2 {[%clk 0:02:02]}  h4 {[%clk 0:01:41]} 27. Bf4 {[%clk 0:01:48]}  Re4 {[%clk 0:01:41]} 28. d6 {[%clk 0:01:39]}  Nc5 {[%clk 0:01:24]} 29. d7 {[%clk 0:01:39]}  Nxd7 {[%clk 0:01:23]} 30. Qa8+ {[%clk 0:01:39]} 1-0


[Site "https://www.chess.com"]

[Event "Titled Tuesday Blitz May 31 Late 2022"]
[White "Eljanov, Pavel"]
[Black "Trost, Edvin"]
[WhiteFideId "14102951"]
[BlackFideId "1729519"]
[WhiteElo "2601"]
[BlackElo "2165"]
[Result "0-1"]
[Round "11"]
[TimeControl "180+1"]
[Date "2022.05.31"]
[WhiteClock "0:00:03"]
[BlackClock "0:00:42"]

1. c4 {[%clk 0:03:00]}  e5 {[%clk 0:02:59]} 2. Nc3 {[%clk 0:03:00]}  Nf6 {[%clk 0:02:56]} 3. Nf3 {[%clk 0:02:59]}  Nc6 {[%clk 0:02:56]} 4. e4 {[%clk 0:02:59]}  Bb4 {[%clk 0:02:53]} 5. d3 {[%clk 0:02:59]}  d6 {[%clk 0:02:52]} 6. a3 {[%clk 0:02:59]}  Bc5 {[%clk 0:02:52]} 7. b4 {[%clk 0:02:59]}  Bb6 {[%clk 0:02:52]} 8. Be3 {[%clk 0:02:57]}  Bxe3 {[%clk 0:02:49]} 9. fxe3 {[%clk 0:02:56]}  O-O {[%clk 0:02:49]} 10. Be2 {[%clk 0:02:56]}  Ng4 {[%clk 0:02:30]} 11. Qd2 {[%clk 0:02:30]}  f5 {[%clk 0:02:29]} 12. h3 {[%clk 0:02:03]}  Nf6 {[%clk 0:02:21]} 13. exf5 {[%clk 0:02:00]}  Bxf5 {[%clk 0:02:22]} 14. g4 {[%clk 0:02:00]}  Bg6 {[%clk 0:02:18]} 15. O-O-O {[%clk 0:01:43]}  e4 {[%clk 0:01:48]} 16. Ng5 {[%clk 0:01:43]}  Qe7 {[%clk 0:01:43]} 17. h4 {[%clk 0:01:09]}  exd3 {[%clk 0:01:37]} 18. Bxd3 {[%clk 0:01:07]}  Bxd3 {[%clk 0:01:37]} 19. Qxd3 {[%clk 0:01:05]}  Ne5 {[%clk 0:01:37]} 20. Qc2 {[%clk 0:01:03]}  c6 {[%clk 0:01:29]} 21. Nce4 {[%clk 0:00:54]}  Nexg4 {[%clk 0:01:29]} 22. Rhg1 {[%clk 0:00:27]}  h6 {[%clk 0:01:12]} 23. Nxd6 {[%clk 0:00:06]}  hxg5 {[%clk 0:00:54]} 24. Nf5 {[%clk 0:00:06]}  Qe5 {[%clk 0:00:52]} 25. hxg5 {[%clk 0:00:06]}  Ne4 {[%clk 0:00:45]} 26. Rxg4 {[%clk 0:00:06]}  Qa1+ {[%clk 0:00:45]} 27. Qb1 {[%clk 0:00:06]}  Qxb1+ {[%clk 0:00:45]} 28. Kxb1 {[%clk 0:00:07]}  Nc3+ {[%clk 0:00:42]} 29. Kc2 {[%clk 0:00:07]}  Nxd1 {[%clk 0:00:42]} 30. Ne7+ {[%clk 0:00:03]}  Kf7 {[%clk 0:00:42]} 0-1


[Site "https://www.chess.com"]

[Event "Titled Tuesday Blitz May 31 Late 2022"]
[White "Estrada Nieto, Julian"]
[Black "Kozin, Yuri"]
[WhiteFideId "5101018"]
[BlackFideId "4129920"]
[WhiteElo "2252"]
[BlackElo "2568"]
[Result "0-1"]
[Round "11"]
[TimeControl "180+1"]
[Date "2022.06.01"]
[WhiteClock "0:00:05"]
[BlackClock "0:00:12"]

1. e4 {[%clk 0:03:00]}  c5 {[%clk 0:02:56]} 2. Nf3 {[%clk 0:02:59]}  e6 {[%clk 0:02:56]} 3. c3 {[%clk 0:02:58]}  Nf6 {[%clk 0:02:55]} 4. e5 {[%clk 0:02:59]}  Nd5 {[%clk 0:02:56]} 5. Bc4 {[%clk 0:02:59]}  d6 {[%clk 0:02:56]} 6. d4 {[%clk 0:02:58]}  cxd4 {[%clk 0:02:57]} 7. cxd4 {[%clk 0:02:59]}  dxe5 {[%clk 0:02:58]} 8. dxe5 {[%clk 0:02:58]}  Bb4+ {[%clk 0:02:58]} 9. Nbd2 {[%clk 0:02:54]}  O-O {[%clk 0:02:56]} 10. O-O {[%clk 0:02:54]}  b6 {[%clk 0:02:56]} 11. Ne4 {[%clk 0:02:48]}  Ba6 {[%clk 0:02:55]} 12. Bg5 {[%clk 0:02:36]}  Be7 {[%clk 0:02:52]} 13. b3 {[%clk 0:02:18]}  Bxg5 {[%clk 0:02:46]} 14. Nfxg5 {[%clk 0:02:14]}  h6 {[%clk 0:02:38]} 15. Nf3 {[%clk 0:02:10]}  Bxc4 {[%clk 0:02:31]} 16. bxc4 {[%clk 0:02:10]}  Nf4 {[%clk 0:02:30]} 17. Nd6 {[%clk 0:01:56]}  Nc6 {[%clk 0:02:22]} 18. Qd2 {[%clk 0:01:45]}  Ng6 {[%clk 0:02:20]} 19. Rfe1 {[%clk 0:01:44]}  Nh4 {[%clk 0:02:18]} 20. Nxh4 {[%clk 0:01:32]}  Qxh4 {[%clk 0:02:17]} 21. Re4 {[%clk 0:01:32]}  Qh5 {[%clk 0:02:07]} 22. Qe3 {[%clk 0:01:13]}  Rad8 {[%clk 0:02:02]} 23. Re1 {[%clk 0:01:07]}  Qg6 {[%clk 0:01:55]} 24. h3 {[%clk 0:01:04]}  Nxe5 {[%clk 0:01:36]} 25. Nb5 {[%clk 0:00:28]}  Nc6 {[%clk 0:01:29]} 26. Rg4 {[%clk 0:00:24]}  Qf6 {[%clk 0:01:25]} 27. Qg3 {[%clk 0:00:18]}  Nd4 {[%clk 0:01:15]} 28. Nd6 {[%clk 0:00:15]}  Nf5 {[%clk 0:01:02]} 29. Nxf5 {[%clk 0:00:14]}  exf5 {[%clk 0:01:02]} 30. Rf4 {[%clk 0:00:14]}  Rfe8 {[%clk 0:00:53]} 31. Rxe8+ {[%clk 0:00:12]}  Rxe8 {[%clk 0:00:53]} 32. h4 {[%clk 0:00:12]}  h5 {[%clk 0:00:49]} 33. Qf3 {[%clk 0:00:11]}  g6 {[%clk 0:00:47]} 34. g3 {[%clk 0:00:10]}  Qa1+ {[%clk 0:00:43]} 35. Kg2 {[%clk 0:00:09]}  Qxa2 {[%clk 0:00:41]} 36. Qc6 {[%clk 0:00:07]}  Qe2 {[%clk 0:00:39]} 37. Rd4 {[%clk 0:00:03]}  Qe6 {[%clk 0:00:32]} 38. Rd6 {[%clk 0:00:02]}  Qe4+ {[%clk 0:00:28]} 39. Qxe4 {[%clk 0:00:02]}  Rxe4 {[%clk 0:00:29]} 40. Rd7 {[%clk 0:00:03]}  Rxc4 {[%clk 0:00:23]} 41. Rxa7 {[%clk 0:00:03]}  Rb4 {[%clk 0:00:23]} 42. Rb7 {[%clk 0:00:04]}  Rb3 {[%clk 0:00:23]} 43. Rb8+ {[%clk 0:00:02]}  Kg7 {[%clk 0:00:24]} 44. Rb7 {[%clk 0:00:03]}  Kf6 {[%clk 0:00:24]} 45. Rc7 {[%clk 0:00:02]}  Rb4 {[%clk 0:00:22]} 46. Rb7 {[%clk 0:00:03]}  Ke6 {[%clk 0:00:21]} 47. Kf3 {[%clk 0:00:03]}  Rb3+ {[%clk 0:00:20]} 48. Kf4 {[%clk 0:00:03]}  Rb4+ {[%clk 0:00:20]} 49. Kg5 {[%clk 0:00:02]}  Rb2 {[%clk 0:00:18]} 50. Kh6 {[%clk 0:00:01]}  Rxf2 {[%clk 0:00:13]} 51. Rxb6+ {[%clk 0:00:01]}  Ke5 {[%clk 0:00:14]} 52. Kg7 {[%clk 0:00:02]}  Rg2 {[%clk 0:00:13]} 53. Rf6 {[%clk 0:00:02]}  Rxg3 {[%clk 0:00:13]} 54. Rxf7 {[%clk 0:00:03]}  f4 {[%clk 0:00:13]} 55. Re7+ {[%clk 0:00:03]}  Kf5 {[%clk 0:00:12]} 56. Rf7+ {[%clk 0:00:03]}  Ke4 {[%clk 0:00:12]} 57. Kh6 {[%clk 0:00:02]}  f3 {[%clk 0:00:11]} 58. Re7+ {[%clk 0:00:03]}  Kf4 {[%clk 0:00:11]} 59. Rf7+ {[%clk 0:00:03]}  Ke3 {[%clk 0:00:12]} 60. Re7+ {[%clk 0:00:03]}  Kf2 {[%clk 0:00:12]} 61. Rf7 {[%clk 0:00:03]}  Kg2 {[%clk 0:00:12]} 62. Rf6 {[%clk 0:00:01]}  f2 {[%clk 0:00:12]} 63. Rf7 {[%clk 0:00:01]}  f1=Q {[%clk 0:00:12]} 64. Rxf1 {[%clk 0:00:01]}  Kxf1 {[%clk 0:00:12]} 65. Kg7 {[%clk 0:00:02]}  Kg2 {[%clk 0:00:13]} 66. Kh6 {[%clk 0:00:03]}  Kh3 {[%clk 0:00:13]} 67. Kg7 {[%clk 0:00:04]}  Kxh4 {[%clk 0:00:13]} 68. Kh6 {[%clk 0:00:05]}  Kg4 {[%clk 0:00:12]} 0-1


[Site "https://www.chess.com"]

[Event "Titled Tuesday Blitz May 31 Late 2022"]
[White "Garcia, Gabriel Gonzaga"]
[Black "Wartiovaara, Oliver"]
[WhiteFideId "2138956"]
[BlackFideId "513024"]
[WhiteElo "2240"]
[BlackElo "1971"]
[Result "0-1"]
[Round "11"]
[TimeControl "180+1"]
[Date "2022.06.01"]
[WhiteClock "0:00:14"]
[BlackClock "0:00:06"]

1. e4 {[%clk 0:02:59]}  c5 {[%clk 0:02:54]} 2. Nf3 {[%clk 0:02:59]}  d6 {[%clk 0:02:53]} 3. d4 {[%clk 0:02:58]}  cxd4 {[%clk 0:02:54]} 4. Qxd4 {[%clk 0:02:58]}  Nc6 {[%clk 0:02:52]} 5. Bb5 {[%clk 0:02:58]}  Bd7 {[%clk 0:02:48]} 6. Bxc6 {[%clk 0:02:58]}  Bxc6 {[%clk 0:02:49]} 7. Bg5 {[%clk 0:02:59]}  Nf6 {[%clk 0:02:23]} 8. Nc3 {[%clk 0:02:58]}  e6 {[%clk 0:02:22]} 9. O-O-O {[%clk 0:02:58]}  a6 {[%clk 0:02:07]} 10. Qd3 {[%clk 0:02:54]}  Rc8 {[%clk 0:01:53]} 11. Nd4 {[%clk 0:02:54]}  Bd7 {[%clk 0:01:47]} 12. f4 {[%clk 0:02:53]}  Be7 {[%clk 0:01:46]} 13. Kb1 {[%clk 0:02:52]}  O-O {[%clk 0:01:38]} 14. h4 {[%clk 0:02:47]}  h6 {[%clk 0:01:22]} 15. Nb3 {[%clk 0:02:40]}  Rxc3 {[%clk 0:00:55]} 16. bxc3 {[%clk 0:02:37]}  Bc6 {[%clk 0:00:38]} 17. Bxf6 {[%clk 0:02:28]}  Bxf6 {[%clk 0:00:38]} 18. Qxd6 {[%clk 0:02:29]}  Qxd6 {[%clk 0:00:37]} 19. Rxd6 {[%clk 0:02:30]}  Bxe4 {[%clk 0:00:38]} 20. Rd2 {[%clk 0:02:23]}  Rc8 {[%clk 0:00:34]} 21. Re1 {[%clk 0:02:18]}  Bd5 {[%clk 0:00:31]} 22. Rd3 {[%clk 0:02:03]}  Bxc3 {[%clk 0:00:28]} 23. Ree3 {[%clk 0:02:03]}  Bf6 {[%clk 0:00:28]} 24. g3 {[%clk 0:02:03]}  b6 {[%clk 0:00:25]} 25. Nd2 {[%clk 0:01:55]}  a5 {[%clk 0:00:22]} 26. f5 {[%clk 0:01:47]}  Rc5 {[%clk 0:00:16]} 27. fxe6 {[%clk 0:01:44]}  Bxe6 {[%clk 0:00:16]} 28. Ne4 {[%clk 0:01:37]}  Rb5+ {[%clk 0:00:16]} 29. Kc1 {[%clk 0:01:37]}  Bb2+ {[%clk 0:00:10]} 30. Kd2 {[%clk 0:01:37]}  Bxa2 {[%clk 0:00:10]} 31. Rd8+ {[%clk 0:01:35]}  Kh7 {[%clk 0:00:09]} 32. Nc3 {[%clk 0:01:33]}  Bxc3+ {[%clk 0:00:08]} 33. Kxc3 {[%clk 0:01:34]}  Be6 {[%clk 0:00:08]} 34. Rb8 {[%clk 0:01:30]}  Rc5+ {[%clk 0:00:08]} 35. Kd3 {[%clk 0:01:30]}  b5 {[%clk 0:00:09]} 36. c3 {[%clk 0:01:26]}  Bf5+ {[%clk 0:00:05]} 37. Kd4 {[%clk 0:01:21]}  Rc4+ {[%clk 0:00:04]} 38. Kd5 {[%clk 0:01:22]}  Be6+ {[%clk 0:00:05]} 39. Kd6 {[%clk 0:01:13]}  b4 {[%clk 0:00:05]} 40. cxb4 {[%clk 0:01:12]}  axb4 {[%clk 0:00:06]} 41. Rb7 {[%clk 0:01:08]}  Rd4+ {[%clk 0:00:05]} 42. Ke7 {[%clk 0:01:07]}  b3 {[%clk 0:00:04]} 43. Kf8 {[%clk 0:01:04]}  Rg4 {[%clk 0:00:03]} 44. Rc3 {[%clk 0:00:56]}  Ra4 {[%clk 0:00:03]} 45. Re3 {[%clk 0:00:55]}  Ra2 {[%clk 0:00:02]} 46. g4 {[%clk 0:00:48]}  Rc2 {[%clk 0:00:03]} 47. g5 {[%clk 0:00:34]}  hxg5 {[%clk 0:00:04]} 48. hxg5 {[%clk 0:00:35]}  Kg6 {[%clk 0:00:04]} 49. Rxe6+ {[%clk 0:00:30]}  fxe6 {[%clk 0:00:03]} 50. Rxg7+ {[%clk 0:00:31]}  Kf5 {[%clk 0:00:04]} 51. g6 {[%clk 0:00:28]}  b2 {[%clk 0:00:03]} 52. Rb7 {[%clk 0:00:28]}  Kxg6 {[%clk 0:00:04]} 53. Ke7 {[%clk 0:00:28]}  Kf5 {[%clk 0:00:05]} 54. Kd6 {[%clk 0:00:28]}  e5 {[%clk 0:00:05]} 55. Kd5 {[%clk 0:00:28]}  e4 {[%clk 0:00:06]} 56. Kd4 {[%clk 0:00:29]}  Kf4 {[%clk 0:00:06]} 57. Rf7+ {[%clk 0:00:28]}  Kg3 {[%clk 0:00:06]} 58. Rb7 {[%clk 0:00:28]}  Kf3 {[%clk 0:00:06]} 59. Rf7+ {[%clk 0:00:28]}  Ke2 {[%clk 0:00:06]} 60. Rb7 {[%clk 0:00:28]}  e3 {[%clk 0:00:06]} 61. Rb3 {[%clk 0:00:28]}  Rd2+ {[%clk 0:00:05]} 62. Ke4 {[%clk 0:00:27]}  Kd1 {[%clk 0:00:04]} 63. Kxe3 {[%clk 0:00:27]}  Rh2 {[%clk 0:00:04]} 64. Kd4 {[%clk 0:00:23]}  Kc2 {[%clk 0:00:04]} 65. Rc3+ {[%clk 0:00:22]}  Kb1 {[%clk 0:00:04]} 66. Rc8 {[%clk 0:00:21]}  Rc2 {[%clk 0:00:04]} 67. Rh8 {[%clk 0:00:19]}  Ka2 {[%clk 0:00:04]} 68. Ra8+ {[%clk 0:00:18]}  Kb3 {[%clk 0:00:04]} 69. Rb8+ {[%clk 0:00:18]}  Ka2 {[%clk 0:00:04]} 70. Ra8+ {[%clk 0:00:18]}  Kb1 {[%clk 0:00:05]} 71. Kd3 {[%clk 0:00:18]}  Rc6 {[%clk 0:00:05]} 72. Kd2 {[%clk 0:00:17]}  Rd6+ {[%clk 0:00:05]} 73. Kc3 {[%clk 0:00:17]}  Kc1 {[%clk 0:00:04]} 74. Rh8 {[%clk 0:00:15]}  b1=Q {[%clk 0:00:05]} 75. Rh1+ {[%clk 0:00:15]}  Rd1 {[%clk 0:00:05]} 76. Rh2 {[%clk 0:00:15]}  Rd3+ {[%clk 0:00:05]} 77. Kc4 {[%clk 0:00:14]}  Qb3+ {[%clk 0:00:06]} 0-1


[Site "https://www.chess.com"]

[Event "Titled Tuesday Blitz May 31 Late 2022"]
[White "Hardaway, Brewington"]
[Black "Norowitz, Yaacov"]
[WhiteFideId "30941849"]
[BlackFideId "2024799"]
[WhiteElo "1768"]
[BlackElo "2412"]
[Result "0-1"]
[Round "11"]
[TimeControl "180+1"]
[Date "2022.05.31"]
[WhiteClock "0:02:14"]
[BlackClock "0:01:50"]

1. e4 {[%clk 0:03:00]}  c6 {[%clk 0:02:59]} 2. d4 {[%clk 0:03:01]}  d5 {[%clk 0:03:00]} 3. e5 {[%clk 0:03:01]}  Bf5 {[%clk 0:03:00]} 4. h4 {[%clk 0:03:02]}  Qb6 {[%clk 0:03:00]} 5. g4 {[%clk 0:03:00]}  Bd7 {[%clk 0:03:00]} 6. Nc3 {[%clk 0:03:00]}  e6 {[%clk 0:02:57]} 7. a3 {[%clk 0:03:00]}  c5 {[%clk 0:02:58]} 8. Nge2 {[%clk 0:02:46]}  Nc6 {[%clk 0:02:46]} 9. Na4 {[%clk 0:02:42]}  Qa5+ {[%clk 0:02:45]} 10. c3 {[%clk 0:02:42]}  cxd4 {[%clk 0:02:37]} 11. b4 {[%clk 0:02:40]}  Nxe5 {[%clk 0:02:34]} 12. Nxd4 {[%clk 0:02:38]}  Qxa4 {[%clk 0:02:07]} 13. Qxa4 {[%clk 0:02:30]}  Bxa4 {[%clk 0:02:07]} 14. Bf4 {[%clk 0:02:29]}  Bd6 {[%clk 0:02:05]} 15. Bg3 {[%clk 0:02:25]}  O-O-O {[%clk 0:01:58]} 16. Bb5 {[%clk 0:02:20]}  Bxb5 {[%clk 0:01:56]} 17. Nxb5 {[%clk 0:02:20]}  Bb8 {[%clk 0:01:53]} 18. Bxe5 {[%clk 0:02:14]}  Bxe5 {[%clk 0:01:52]} 19. Nxa7+ {[%clk 0:02:14]}  Kb8 {[%clk 0:01:52]} 20. Nb5 {[%clk 0:02:15]}  Nf6 {[%clk 0:01:52]} 21. g5 {[%clk 0:02:15]}  Ne4 {[%clk 0:01:52]} 22. Rc1 {[%clk 0:02:15]}  Rc8 {[%clk 0:01:51]} 23. Rh3 {[%clk 0:02:14]}  Nd6 {[%clk 0:01:50]} 24. Nxd6 {[%clk 0:02:13]}  Bxd6 {[%clk 0:01:50]} 25. Rf3 {[%clk 0:02:14]}  Rc7 {[%clk 0:01:50]} 26. Ke2 {[%clk 0:02:13]}  Rhc8 {[%clk 0:01:50]} 27. a4 {[%clk 0:02:14]}  Bxb4 {[%clk 0:01:50]} 0-1


[Site "https://www.chess.com"]

[Event "Titled Tuesday Blitz May 31 Late 2022"]
[White "Ibarra Jerez, Jose Carlos"]
[Black "Andreikin, Dmitry"]
[WhiteFideId "2226332"]
[BlackFideId "4158814"]
[WhiteElo "2626"]
[BlackElo "2736"]
[Result "0-1"]
[Round "11"]
[TimeControl "180+1"]
[Date "2022.05.31"]
[WhiteClock "0:00:02"]
[BlackClock "0:00:15"]

1. e4 {[%clk 0:03:00]}  c5 {[%clk 0:03:00]} 2. Nc3 {[%clk 0:03:00]}  a6 {[%clk 0:03:00]} 3. g4 {[%clk 0:02:58]}  b5 {[%clk 0:03:00]} 4. Bg2 {[%clk 0:02:58]}  Bb7 {[%clk 0:03:01]} 5. d3 {[%clk 0:02:59]}  e6 {[%clk 0:02:59]} 6. Nh3 {[%clk 0:02:59]}  Nc6 {[%clk 0:02:58]} 7. O-O {[%clk 0:02:56]}  Nd4 {[%clk 0:02:55]} 8. f4 {[%clk 0:02:51]}  Qc7 {[%clk 0:02:22]} 9. Be3 {[%clk 0:02:47]}  h5 {[%clk 0:02:12]} 10. g5 {[%clk 0:02:45]}  h4 {[%clk 0:02:13]} 11. a4 {[%clk 0:02:35]}  b4 {[%clk 0:02:11]} 12. Ne2 {[%clk 0:02:35]}  Nxe2+ {[%clk 0:02:03]} 13. Qxe2 {[%clk 0:02:35]}  Ne7 {[%clk 0:02:04]} 14. Qf2 {[%clk 0:02:17]}  Ng6 {[%clk 0:01:53]} 15. Rae1 {[%clk 0:01:47]}  Bd6 {[%clk 0:01:40]} 16. Kh1 {[%clk 0:01:25]}  a5 {[%clk 0:01:31]} 17. b3 {[%clk 0:01:17]}  Be7 {[%clk 0:01:03]} 18. Bc1 {[%clk 0:01:07]}  O-O-O {[%clk 0:00:58]} 19. Bb2 {[%clk 0:00:55]}  Rhg8 {[%clk 0:00:57]} 20. c3 {[%clk 0:00:45]}  Kb8 {[%clk 0:00:46]} 21. cxb4 {[%clk 0:00:43]}  axb4 {[%clk 0:00:47]} 22. Rc1 {[%clk 0:00:42]}  d5 {[%clk 0:00:45]} 23. f5 {[%clk 0:00:38]}  Ne5 {[%clk 0:00:38]} 24. fxe6 {[%clk 0:00:36]}  Nxd3 {[%clk 0:00:35]} 25. Qc2 {[%clk 0:00:30]}  Nxc1 {[%clk 0:00:34]} 26. exf7 {[%clk 0:00:28]}  Rgf8 {[%clk 0:00:32]} 27. Bxg7 {[%clk 0:00:25]}  Nxb3 {[%clk 0:00:22]} 28. Qxb3 {[%clk 0:00:23]}  c4 {[%clk 0:00:21]} 29. Qb1 {[%clk 0:00:07]}  c3 {[%clk 0:00:19]} 30. Bxf8 {[%clk 0:00:07]}  Bxf8 {[%clk 0:00:20]} 31. exd5 {[%clk 0:00:06]}  c2 {[%clk 0:00:17]} 32. Qb2 {[%clk 0:00:05]}  Rxd5 {[%clk 0:00:16]} 33. Qh8 {[%clk 0:00:03]}  Rd1 {[%clk 0:00:15]} 34. Qxf8+ {[%clk 0:00:02]}  Ka7 {[%clk 0:00:15]} 0-1


[Site "https://www.chess.com"]

[Event "Titled Tuesday Blitz May 31 Late 2022"]
[White "Ivic, Velimir"]
[Black "Hansen, Eric"]
[WhiteFideId "950122"]
[BlackFideId "2606771"]
[WhiteElo "2610"]
[BlackElo "2568"]
[Result "1-0"]
[Round "11"]
[TimeControl "180+1"]
[Date "2022.05.31"]
[WhiteClock "0:01:18"]
[BlackClock "0:00:01"]

1. e4 {[%clk 0:03:00]}  c5 {[%clk 0:02:58]} 2. Nf3 {[%clk 0:03:01]}  e6 {[%clk 0:02:58]} 3. d4 {[%clk 0:03:01]}  cxd4 {[%clk 0:02:58]} 4. Nxd4 {[%clk 0:03:02]}  Nc6 {[%clk 0:02:57]} 5. Nc3 {[%clk 0:03:02]}  d6 {[%clk 0:02:56]} 6. g4 {[%clk 0:03:00]}  a6 {[%clk 0:02:53]} 7. Be3 {[%clk 0:03:00]}  Nge7 {[%clk 0:02:53]} 8. h4 {[%clk 0:02:56]}  b5 {[%clk 0:02:47]} 9. a3 {[%clk 0:02:54]}  Bb7 {[%clk 0:02:42]} 10. g5 {[%clk 0:02:50]}  Rc8 {[%clk 0:02:41]} 11. Be2 {[%clk 0:02:49]}  Nxd4 {[%clk 0:02:25]} 12. Qxd4 {[%clk 0:02:48]}  Nc6 {[%clk 0:02:25]} 13. Qd2 {[%clk 0:02:49]}  Ne5 {[%clk 0:02:26]} 14. h5 {[%clk 0:02:42]}  Nc4 {[%clk 0:02:20]} 15. Bxc4 {[%clk 0:02:42]}  Rxc4 {[%clk 0:02:21]} 16. f3 {[%clk 0:02:41]}  Be7 {[%clk 0:02:18]} 17. O-O-O {[%clk 0:02:36]}  Qc7 {[%clk 0:02:13]} 18. Kb1 {[%clk 0:02:35]}  O-O {[%clk 0:02:03]} 19. Bd4 {[%clk 0:02:29]}  Rc8 {[%clk 0:01:42]} 20. h6 {[%clk 0:01:57]}  g6 {[%clk 0:01:29]} 21. Rhg1 {[%clk 0:01:49]}  Qd8 {[%clk 0:00:39]} 22. Bf6 {[%clk 0:01:41]}  Bxf6 {[%clk 0:00:28]} 23. gxf6 {[%clk 0:01:42]}  Qxf6 {[%clk 0:00:28]} 24. Qxd6 {[%clk 0:01:42]}  R4c6 {[%clk 0:00:27]} 25. Qd3 {[%clk 0:01:33]}  a5 {[%clk 0:00:18]} 26. e5 {[%clk 0:01:27]}  Qe7 {[%clk 0:00:10]} 27. Ne4 {[%clk 0:01:27]}  Rxc2 {[%clk 0:00:10]} 28. Nf6+ {[%clk 0:01:28]}  Kh8 {[%clk 0:00:09]} 29. Qxc2 {[%clk 0:01:25]}  Rxc2 {[%clk 0:00:09]} 30. Kxc2 {[%clk 0:01:26]}  Bd5 {[%clk 0:00:06]} 31. Kb1 {[%clk 0:01:21]}  b4 {[%clk 0:00:02]} 32. Rc1 {[%clk 0:01:20]}  Qb7 {[%clk 0:00:01]} 33. a4 {[%clk 0:01:18]} 1-0


[Site "https://www.chess.com"]

[Event "Titled Tuesday Blitz May 31 Late 2022"]
[White "Janaszak, Dawid"]
[Black "Harvey, Marcus R"]
[WhiteFideId "1119206"]
[BlackFideId "400092"]
[WhiteElo "2199"]
[BlackElo "2485"]
[Result "1/2-1/2"]
[Round "11"]
[TimeControl "180+1"]
[Date "2022.05.31"]
[WhiteClock "0:01:03"]
[BlackClock "0:00:57"]

1. e4 {[%clk 0:03:00]}  e6 {[%clk 0:02:20]} 2. d4 {[%clk 0:02:57]}  d5 {[%clk 0:02:20]} 3. Bd3 {[%clk 0:02:57]}  dxe4 {[%clk 0:02:19]} 4. Bxe4 {[%clk 0:02:58]}  Nf6 {[%clk 0:02:20]} 5. Bf3 {[%clk 0:02:59]}  Bd6 {[%clk 0:02:20]} 6. Ne2 {[%clk 0:02:58]}  Nbd7 {[%clk 0:02:20]} 7. Nd2 {[%clk 0:02:53]}  e5 {[%clk 0:02:19]} 8. O-O {[%clk 0:02:35]}  O-O {[%clk 0:02:19]} 9. c3 {[%clk 0:02:20]}  Re8 {[%clk 0:02:17]} 10. Ng3 {[%clk 0:02:15]}  exd4 {[%clk 0:02:09]} 11. cxd4 {[%clk 0:02:15]}  Nb6 {[%clk 0:02:07]} 12. Nde4 {[%clk 0:02:03]}  Nxe4 {[%clk 0:01:58]} 13. Nxe4 {[%clk 0:02:04]}  Bf8 {[%clk 0:01:59]} 14. Bg5 {[%clk 0:02:02]}  f6 {[%clk 0:01:57]} 15. Be3 {[%clk 0:01:55]}  Nd5 {[%clk 0:01:56]} 16. Qb3 {[%clk 0:01:53]}  c6 {[%clk 0:01:55]} 17. Nc3 {[%clk 0:01:51]}  Be6 {[%clk 0:01:43]} 18. Qxb7 {[%clk 0:01:47]}  Nb4 {[%clk 0:01:37]} 19. a3 {[%clk 0:01:10]}  Rb8 {[%clk 0:01:36]} 20. Qxa7 {[%clk 0:01:10]}  Ra8 {[%clk 0:01:34]} 21. Qb7 {[%clk 0:01:05]}  Rb8 {[%clk 0:01:31]} 22. Qa7 {[%clk 0:01:03]}  Ra8 {[%clk 0:01:08]} 23. Qb7 {[%clk 0:01:03]}  Rb8 {[%clk 0:00:57]} 24. Qa7 {[%clk 0:01:03]} 1/2-1/2


[Site "https://www.chess.com"]